bitfinex-derivatives/quotes_ETHF0:USTF0_20250627
["timestamp","ask_amount","ask_price","bid_price","bid_amount"]
[1751035729631,1.70841,2427.2,2427.1,3.05165]
[1751035730121,1.70841,2427.2,2427.1,0.827]
[1751035731532,0.82375,2427.1,2427.0,3.2078]
[1751035731932,0.82375,2427.1,2427.0,29.0088]
[1751035732235,1.99835,2427.1,2427.0,29.0088]
[1751035732433,1.99835,2427.1,2427.0,29.83258]
[1751035732734,1.99835,2427.1,2427.0,29.0088]
[1751035734530,1.99835,2427.1,2427.0,29.0078]
[1751035735035,1.1746,2427.1,2427.0,29.83158]
[1751035735234,1.1746,2427.1,2427.0,35.09540037]
[1751035735629,1.99835,2427.1,2427.0,31.29318]
[1751035738242,2.96730765,2427.1,2427.0,31.29318]
[1751035738842,2.14355765,2427.1,2427.0,31.29318]
[1751035739042,2.96730765,2427.1,2427.0,31.29318]
[1751035739250,2.14355765,2427.1,2427.0,35.09540037]
[1751035739543,2.14379864,2427.1,2427.0,35.09540037]
[1751035739841,1.1746,2427.1,2427.0,31.29318]
[1751035740745,1.1746,2427.1,2427.0,36.29318]
[1751035742144,1.1746,2427.1,2427.0,38.75526885]
[1751035742649,2.05884,2427.8,2427.3,0.82367]
[1751035742849,0.96854855,2427.7,2427.4,3.2078]
[1751035743142,0.82361,2427.5,2427.4,29.0008]
[1751035743349,1.79215855,2427.5,2427.4,29.0008]
[1751035743747,1.79215855,2427.5,2427.4,29.82444]
[1751035743748,0.96854855,2427.5,2427.4,29.82444]
[1751035744062,1.79215855,2427.5,2427.4,29.82444]
[1751035744562,0.82361,2427.5,2427.4,29.82444]
[1751035744758,0.82361,2427.5,2427.4,29.0008]
[1751035745958,1.79142555,2427.5,2427.4,28.9988]
[1751035746162,7.05154592,2427.5,2427.4,28.9988]
[1751035746674,9.04624592,2427.5,2427.4,28.9988]
[1751035746960,0.82371,2427.2,2427.1,6.874]
[1751035747164,0.82371,2427.2,2427.1,32.665]
[1751035748158,0.82375,2427.1,2427.0,6.49364885]
[1751035748364,0.82375,2427.1,2427.0,32.28364885]
[1751035748561,0.82375,2427.1,2427.0,28.9978]
[1751035748866,0.82375,2427.1,2427.0,28.9968]
[1751035749060,0.82375,2427.1,2427.0,29.82058]
[1751035752367,0.82373,2427.2,2427.1,0.82373]
[1751035752566,0.82373,2427.2,2427.0,33.62277037]
[1751035753467,0.82375,2427.1,2427.0,33.62277037]
[1751035753766,0.82375,2427.1,2427.0,33.62280037]
[1751035754868,0.82375,2427.1,2427.0,7.83380037]
[1751035755066,0.82375,2427.1,2427.0,40.49380037]
[1751035756167,0.82375,2427.1,2427.0,39.67002037]
[1751035756370,0.82375,2427.1,2427.0,3.2078]
[1751035756567,0.82375,2427.1,2427.0,28.9918]
[1751035758273,0.82375,2427.1,2427.0,29.81558]
[1751035758664,0.82368,2427.3,2427.2,4.62591037]
[1751035758861,1.79227466,2427.4,2427.2,30.40891037]
[1751035759065,0.82364,2427.4,2427.3,0.8122]
[1751035759468,1.7922569,2427.4,2427.3,0.8122]
[1751035759668,3.7869569,2427.4,2427.3,0.8122]
[1751035761073,0.82368,2427.3,2427.2,0.82369]
[1751035761267,1.7922969,2427.3,2427.2,26.60671]
[1751035761768,1.7922969,2427.3,2427.2,0.82371]
[1751035761974,0.82371,2427.2,2427.1,8.47622]
[1751035762273,0.8237,2427.3,2427.2,0.82371]
[1751035762474,1.79137242,2427.3,2427.2,0.82371]
[1751035762874,0.8237,2427.3,2427.2,0.82371]
[1751035763274,0.82371,2427.2,2427.1,34.25622]
[1751035765074,0.82371,2427.2,2427.1,33.4325]
[1751035765273,0.82371,2427.2,2427.1,34.25625]
[1751035765478,0.82371,2427.2,2427.1,33.4325]
[1751035765673,0.82371,2427.2,2427.1,34.25625]
[1751035767882,0.82369,2427.3,2427.2,0.82369]
[1751035768372,1.7905605,2427.3,2427.2,0.82369]
[1751035768780,0.82371,2427.2,2427.1,35.58192]
[1751035769975,0.82371,2427.2,2427.1,7.6525]
[1751035770179,0.82378,2427.0,2426.9,2.46208885]
[1751035770379,0.82381,2426.9,2426.8,2.46208885]
[1751035771082,0.82385,2426.8,2426.7,5.66988885]
[1751035771977,2.26945,2426.8,2426.7,5.66988885]
[1751035773280,2.26945,2426.8,2426.7,3.2078]
[1751035773684,7.03839643,2426.8,2426.7,3.2078]
[1751035773880,0.82398,2426.4,2426.3,3.9923]
[1751035774079,0.82398,2426.4,2426.3,29.7633]
[1751035774385,0.82398,2426.4,2426.3,34.38954037]
[1751035774584,0.82397,2426.5,2426.4,3.80222037]
[1751035774881,0.82397,2426.5,2426.4,30.39720037]
[1751035775082,0.82397,2426.5,2426.4,31.85220037]
[1751035775482,0.82397,2426.5,2426.4,31.02822037]
[1751035776079,5.26712,2427.2,2426.6,3.80222037]
[1751035776279,0.82381,2426.9,2426.8,3.80222037]
[1751035776481,1.7896654,2426.9,2426.8,3.80222037]
[1751035776675,1.8065654,2426.9,2426.8,3.80222037]
[1751035777285,0.84071,2426.9,2426.8,3.80222037]
[1751035778090,0.82385,2426.8,2426.7,29.64638]
[1751035779092,0.84073,2426.9,2426.8,0.82385]
[1751035779289,0.82385,2426.8,2426.7,29.64636]
[1751035781488,0.0169,2426.9,2426.8,4.62607037]
[1751035781683,0.84071,2426.9,2426.8,2.16435]
[1751035781983,0.82381,2426.9,2426.8,1.3405]
[1751035782186,0.89171,2426.9,2426.8,0.82385]
[1751035782380,0.82385,2426.8,2426.7,28.25556]
[1751035782583,0.82385,2426.8,2426.7,29.70596]
[1751035782990,0.89174,2426.9,2426.8,0.82385]
[1751035783294,0.0679,2426.9,2426.8,4.62607037]
[1751035783590,0.0679,2426.9,2426.8,6.07647037]
[1751035784791,0.89171,2426.9,2426.8,6.07647037]
[1751035785584,0.89171,2426.9,2426.8,31.83947037]
[1751035785781,0.0679,2426.9,2426.8,28.03725]
[1751035785988,1e-05,2426.9,2426.8,28.03725]
[1751035786290,4.79723,2427.8,2427.6,0.82355]
[1751035786489,4.79723,2427.8,2427.7,26.58454]
[1751035786694,5.76279535,2427.8,2427.7,25.761]
[1751035786892,2.55499535,2427.8,2427.7,26.58454]
[1751035787089,4.48179535,2427.8,2427.7,26.58454]
[1751035787300,3.51621,2427.8,2427.7,26.58454]
[1751035787687,3.51621,2427.8,2427.7,25.761]
[1751035788194,4.48135434,2427.8,2427.7,25.761]
[1751035789291,3.65784434,2427.8,2427.7,26.58454]
[1751035789491,4.48135434,2427.8,2427.7,25.761]
[1751035792190,3.65784434,2427.8,2427.7,25.761]
[1751035792397,2.89194434,2427.8,2427.7,36.65234]
[1751035792589,1.9268,2427.8,2427.7,36.65234]
[1751035792987,1.9268,2427.8,2427.7,37.44324]
[1751035793697,1.9268,2427.8,2427.7,41.24546037]
[1751035794891,1.9268,2427.8,2427.7,37.44324]
[1751035795198,1.9268,2427.8,2427.7,42.44324]
[1751035795990,1.9268,2427.8,2427.7,44.90700024]
[1751035796200,1.9268,2427.8,2427.7,42.44324]
[1751035797403,2.75031,2427.8,2427.7,37.42524]
[1751035797593,2.75031,2427.8,2427.7,3.9987]
[1751035797899,2.75031,2427.8,2427.7,37.42524]
[1751035798294,2.75031,2427.8,2427.7,36.6017]
[1751035798491,1.9268,2427.8,2427.7,37.42524]
[1751035798692,2.75031,2427.8,2427.7,36.6017]
[1751035798900,2.75031,2427.8,2427.7,37.42224]
[1751035799099,2.75031,2427.8,2427.7,3.9987]
[1751035799401,2.75031,2427.8,2427.7,36.5977]
[1751035799904,2.75031,2427.8,2427.7,37.42124]
[1751035800197,1.9268,2427.8,2427.7,37.42124]
[1751035800502,1.9268,2427.8,2427.7,41.22346037]
[1751035800801,1.9268,2427.8,2427.7,37.42124]
[1751035803698,1.10221,2427.8,2427.7,42.42124]
[1751035804297,0.82332,2428.4,2428.3,0.82332]
[1751035804496,4.03109,2428.5,2428.4,0.82331]
[1751035804695,0.8247,2428.6,2428.5,0.82327]
[1751035804906,0.82324,2428.6,2428.5,25.732]
[1751035805498,0.82331,2428.4,2428.3,3.2078]
[1751035805800,0.82331,2428.4,2428.3,28.9398]
[1751035806305,2.81551,2428.4,2428.3,28.9398]
[1751035806798,2.81551,2428.4,2428.3,29.76314]
[1751035807197,2.81551,2428.4,2428.3,28.9398]
[1751035807398,2.81551,2428.4,2428.3,29.76314]
[1751035809407,2.81551,2428.4,2428.3,28.9398]
[1751035810605,6.61773037,2428.4,2428.3,3.2078]
[1751035810803,6.61773037,2428.4,2428.0,3.2078]
[1751035810804,3.80222037,2428.2,2428.0,3.2078]
[1751035810997,3.4454,2428.4,2428.1,25.723]
[1751035811301,0.8684,2428.5,2428.3,0.82334]
[1751035811508,0.82332,2428.4,2428.3,26.54634]
[1751035811806,1.9922,2428.4,2428.3,26.54634]
[1751035812007,2.81551,2428.4,2428.3,26.54634]
[1751035812902,1.9922,2428.4,2428.3,26.54634]
[1751035813211,2.81551,2428.4,2428.3,26.54634]
[1751035814707,1.9922,2428.4,2428.3,26.54634]
[1751035815011,1.9922,2428.4,2428.3,29.75414]
[1751035815608,2.81551,2428.4,2428.3,29.75414]
[1751035815798,1.9922,2428.4,2428.3,29.75414]
[1751035816502,2.81551,2428.4,2428.3,29.75414]
[1751035817007,1.9922,2428.4,2428.3,29.75414]
[1751035817507,2.81551,2428.4,2428.3,29.75414]
[1751035818100,1.9922,2428.4,2428.3,29.75414]
[1751035818302,2.81551,2428.4,2428.3,29.75414]
[1751035819405,1.9922,2428.4,2428.3,29.75414]
[1751035820000,2.81551,2428.4,2428.3,29.75414]
[1751035820204,1.9922,2428.4,2428.3,29.75414]
[1751035820806,2.81551,2428.4,2428.3,29.75414]
[1751035821007,1.9922,2428.4,2428.3,29.75414]
[1751035821208,1.9922,2428.4,2428.3,33.55636037]
[1751035821400,1.9922,2428.4,2428.3,34.98696037]
[1751035822414,2.81551,2428.4,2428.3,31.18474]
[1751035822602,1.9922,2428.4,2428.3,31.18474]
[1751035823314,1.9922,2428.4,2428.3,29.75414]
[1751035824310,2.81551,2428.4,2428.3,29.75414]
[1751035824506,2.81551,2428.4,2428.3,3.2078]
[1751035824811,2.81551,2428.4,2428.3,28.9148]
[1751035825211,2.81551,2428.4,2428.3,3.2078]
[1751035825412,0.82337,2428.2,2428.1,7.6634]
[1751035825609,0.82337,2428.2,2428.1,6.84]
[1751035825813,0.82347,2427.9,2427.8,9.30376024]
[1751035826016,0.82347,2427.9,2427.8,32.545]
[1751035826312,1.62867,2427.9,2427.8,32.545]
[1751035826715,1.62867,2427.9,2427.8,33.36851]
[1751035826916,1.62867,2427.9,2427.8,32.545]
[1751035827115,1.62867,2427.9,2427.8,33.36851]
[1751035827415,1.62867,2427.9,2427.8,6.84]
[1751035827610,1.62867,2427.9,2427.8,32.544]
[1751035828117,1.9922,2428.2,2427.9,3.80222037]
[1751035828311,2.81558,2428.2,2428.1,0.82341]
[1751035829108,1.9922,2428.2,2428.1,0.82341]
[1751035829312,1.9922,2428.2,2428.1,4.03121]
[1751035829513,1.64323,2428.4,2428.3,0.82334]
[1751035829713,2.61231096,2428.4,2428.3,0.82334]
[1751035829913,0.82334,2428.3,2428.2,26.52635]
[1751035830119,0.96908096,2428.3,2428.2,26.52635]
[1751035830320,5.59464133,2428.3,2428.2,25.703]
[1751035831516,6.96314133,2428.3,2428.2,25.703]
[1751035831722,0.82337,2428.2,2428.1,28.9098]
[1751035832020,0.82332,2428.4,2428.3,0.82333]
[1751035832219,1.79215972,2428.4,2428.3,0.82333]
[1751035832817,3.78435972,2428.4,2428.3,0.82333]
[1751035834221,0.82334,2428.3,2428.2,0.806]
[1751035834419,1.63164,2428.3,2428.1,29.73319]
[1751035834617,0.82337,2428.2,2428.1,28.9098]
[1751035835217,4.03117,2428.2,2428.1,0.82339]
[1751035835418,2.05853,2428.1,2427.6,2.46376024]
[1751035835616,0.82354,2427.7,2427.6,2.46376024]
[1751035836625,2.20464,2427.7,2427.6,2.46376024]
[1751035837117,0.82358,2427.6,2427.5,2.46376024]
[1751035837317,6.30488,2427.6,2427.5,2.46376024]
[1751035838316,0.82361,2427.5,2427.4,2.46376024]
[1751035838522,2.27271,2427.5,2427.4,2.46376024]
[1751035838914,0.82361,2427.5,2427.4,2.46376024]
[1751035839312,0.82361,2427.5,2427.4,3.80222037]
[1751035839516,0.82364,2427.4,2427.3,1.3624]
[1751035840118,0.82368,2427.3,2427.2,3.27787688]
[1751035840327,0.82368,2427.3,2427.2,25.699]
[1751035840922,0.82371,2427.2,2427.1,36.66717688]
[1751035841327,0.82371,2427.2,2427.1,3.27787688]
[1751035841827,0.82378,2427.0,2426.9,6.48567688]
[1751035842728,0.82378,2427.0,2426.9,3.2078]
[1751035843930,1.9922,2427.2,2427.0,3.80222037]
[1751035844133,1.9922,2427.2,2427.1,26.52475]
[1751035844326,2.81591,2427.2,2427.1,27.90585]
[1751035845128,1.9922,2427.2,2427.1,27.90585]
[1751035846534,2.81591,2427.2,2427.1,27.90585]
[1751035847331,2.81591,2427.2,2427.1,27.0821]
[1751035847530,1.9922,2427.2,2426.9,4.0097]
[1751035847737,0.82378,2427.0,2426.9,4.0097]
[1751035848034,0.82381,2426.9,2426.8,0.7938]
[1751035848225,0.7989,2427.1,2426.4,0.8304]
[1751035848226,0.82395,2426.5,2426.4,0.8304]
[1751035848625,0.82398,2426.4,2426.3,0.7895]
[1751035848830,0.82398,2426.4,2426.3,26.4895]
[1751035849027,1.6228,2426.7,2426.3,29.6973]
[1751035849236,6.0007,2427.0,2426.4,8.72414947]
[1751035849534,0.82395,2426.5,2426.4,2.24967]
[1751035849832,0.82395,2426.5,2426.4,1.4257]
[1751035850426,0.82394,2426.6,2426.4,2.24968]
[1751035850628,1.9922,2427.0,2426.9,0.82381]
[1751035850828,0.82371,2427.2,2427.1,0.82373]
[1751035851228,0.82371,2427.2,2427.0,1.6348]
[1751035851425,1.9922,2427.2,2427.1,7.29844947]
[1751035851630,1.9922,2427.2,2427.1,8.12219947]
[1751035851831,1.9922,2427.2,2427.1,9.54789947]
[1751035852035,1.9922,2427.2,2427.1,14.54789947]
[1751035852731,0.6897,2427.2,2427.1,7.24945]
[1751035853031,0.82353,2427.8,2427.6,0.82356]
[1751035853233,0.82353,2427.8,2427.7,27.8944]
[1751035853627,1.51323,2427.8,2427.7,27.8944]
[1751035854730,0.6897,2427.8,2427.7,27.8944]
[1751035854931,0.6897,2427.8,2427.7,28.71794]
[1751035855335,1.51321,2427.8,2427.7,27.8944]
[1751035856239,1.51321,2427.8,2427.7,26.5025]
[1751035856744,0.82354,2427.7,2427.6,3.2078]
[1751035857039,1.51323,2427.8,2427.6,29.73038]
[1751035857228,0.82354,2427.7,2427.6,29.73038]
[1751035857627,1.51323,2427.8,2427.6,29.73038]
[1751035858041,1.51323,2427.8,2427.7,0.82354]
[1751035858238,0.82354,2427.7,2427.6,29.73037]
[1751035858540,1.51323,2427.8,2427.6,29.73037]
[1751035858945,0.82354,2427.7,2427.6,3.2078]
[1751035860538,0.6897,2427.8,2427.6,3.2078]
[1751035860843,1.51323,2427.8,2427.6,3.2078]
[1751035861141,1.9997,2427.7,2427.6,4.03137]
[1751035861341,1.9997,2427.7,2427.6,5.38968]
[1751035861742,2.82324,2427.7,2427.6,4.5661]
[1751035862538,0.82361,2427.5,2427.3,3.2078]
[1751035862846,1.9997,2427.7,2427.3,25.696]
[1751035863037,1.9997,2427.7,2427.3,26.51966]
[1751035863237,0.82364,2427.4,2427.3,27.0543]
[1751035863635,0.82364,2427.4,2427.3,27.87798]
[1751035863835,0.82364,2427.4,2427.3,27.0543]
[1751035864743,0.82363,2427.5,2427.4,0.82364]
[1751035865141,0.82364,2427.4,2427.3,27.87796]
[1751035865343,0.82363,2427.5,2427.4,0.82363]
[1751035865642,0.82364,2427.4,2427.3,30.2621]
[1751035866344,1.9997,2427.7,2427.3,30.2621]
[1751035866645,0.82363,2427.5,2427.4,0.82363]
[1751035867040,0.82364,2427.4,2427.3,3.2078]
[1751035867442,0.82364,2427.4,2427.3,28.9028]
[1751035867641,0.82364,2427.4,2427.3,29.72648]
[1751035868048,0.82364,2427.4,2427.3,28.9028]
[1751035868745,0.82364,2427.4,2427.3,28.9018]
[1751035870150,0.82375,2427.1,2427.0,3.2078]
[1751035870345,0.82375,2427.1,2427.0,29.72458]
[1751035870542,0.82375,2427.1,2427.0,28.9008]
[1751035871037,0.82375,2427.1,2427.0,29.72458]
[1751035871241,0.8669,2427.2,2427.1,0.82375]
[1751035871443,1.69064,2427.2,2427.0,29.72455]
[1751035871639,1.69063,2427.2,2427.0,28.9008]
[1751035871845,1.69063,2427.2,2427.1,0.82375]
[1751035872447,0.82375,2427.1,2427.0,31.16705]
[1751035872650,1.69062,2427.2,2427.1,0.82375]
[1751035873054,1.9997,2427.4,2427.1,0.82372]
[1751035873244,0.82371,2427.2,2427.1,2.3267]
[1751035873449,0.82371,2427.2,2427.1,3.15045]
[1751035874453,1.9997,2427.4,2427.2,0.82371]
[1751035874751,1.9997,2427.4,2427.1,2.3267]
[1751035874752,0.82371,2427.2,2427.1,2.3267]
[1751035874954,0.82371,2427.2,2427.1,0.8842]
[1751035875347,0.8237,2427.3,2427.1,1.70795]
[1751035875664,0.82371,2427.2,2427.1,1.70795]
[1751035876552,0.82371,2427.2,2427.1,0.8842]
[1751035876853,0.82375,2427.1,2427.0,3.2078]
[1751035877053,1.64235,2427.1,2427.0,28.8998]
[1751035877449,1.64235,2427.1,2427.0,3.2078]
[1751035877754,0.82385,2426.8,2426.7,3.2078]
[1751035878149,0.82392,2426.6,2426.5,2.46377683]
[1751035878349,0.82398,2426.4,2426.3,28.15477683]
[1751035878743,0.82398,2426.4,2426.3,68.95477683]
[1751035879159,0.82398,2426.4,2426.3,43.26377683]
[1751035879456,0.82402,2426.3,2426.2,2.46377683]
[1751035879756,0.82405,2426.2,2426.1,2.46377683]
[1751035879946,2.27885,2426.2,2426.1,2.46377683]
[1751035880351,8.12253947,2426.1,2426.0,2.46377683]
[1751035880548,7.29844947,2425.5,2425.4,4.09059186]
[1751035880858,0.82429,2425.5,2425.4,40.8]
[1751035884749,0.82429,2425.5,2425.2,28.9058]
[1751035884750,0.82434,2425.4,2425.2,28.9058]
[1751035885255,0.82434,2425.4,2425.2,69.7058]
[1751035885461,0.82436,2425.3,2425.2,69.7058]
[1751035886159,0.82448,2425.0,2424.9,3.2078]
[1751035886349,0.82448,2425.0,2424.9,28.9068]
[1751035887050,0.82448,2425.0,2424.9,3.2078]
[1751035887251,0.82453,2424.8,2424.7,43.0527]
[1751035887554,0.82468,2424.4,2424.2,3.2078]
[1751035887753,0.82468,2424.4,2424.2,4.5891]
[1751035887960,0.82465,2424.5,2424.2,4.5891]
[1751035888154,1.9997,2424.6,2424.2,4.03252]
[1751035888358,1.9997,2424.6,2424.3,66.498]
[1751035888555,1.9997,2424.6,2424.3,67.8793]
[1751035888855,2.82431,2424.6,2424.4,0.82465]
[1751035889152,2.82431,2424.6,2424.4,2.27105]
[1751035889352,1.9997,2424.6,2424.5,0.82463]
[1751035889552,1.9997,2424.6,2424.5,2.27103]
[1751035889860,0.82457,2424.7,2424.5,27.97303]
[1751035890362,1.9997,2424.6,2424.5,38.47927947]
[1751035891859,1.9997,2424.6,2424.5,31.18083]
[1751035892646,2.8243,2424.6,2424.5,1.4464]
[1751035892847,1.9997,2424.6,2424.2,4.5935]
[1751035893148,0.8247,2424.3,2424.2,3.2078]
[1751035893556,3.006,2424.5,2424.1,41.6452]
[1751035893557,0.82473,2424.2,2424.1,41.6452]
[1751035893754,0.82473,2424.2,2424.1,67.3482]
[1751035894557,1.6713,2424.5,2424.3,0.82469]
[1751035894757,0.8247,2424.3,2424.2,2.17681]
[1751035895158,0.82469,2424.4,2424.2,2.17681]
[1751035895361,1.9997,2424.6,2424.5,0.82463]
[1751035895663,0.82458,2424.7,2424.5,28.9128]
[1751035895857,0.2127,2424.6,2424.5,31.08953]
[1751035896267,1.0373,2424.6,2424.5,31.08953]
[1751035896462,1.0373,2424.6,2424.5,28.9128]
[1751035896758,0.2127,2424.6,2424.5,29.73743]
[1751035896963,1.0373,2424.6,2424.5,29.73743]
[1751035897167,0.2127,2424.6,2424.5,29.73743]
[1751035899368,0.2127,2424.6,2424.5,29.73843]
[1751035899869,0.2127,2424.6,2424.5,31.09673]
[1751035900771,1.0373,2424.6,2424.5,31.09673]
[1751035900971,0.82466,2424.4,2424.3,0.7916]
[1751035901266,0.8247,2424.3,2424.2,3.2078]
[1751035901664,0.82483,2423.9,2423.8,3.2078]
[1751035902361,0.82496,2423.6,2423.5,3.2078]
[1751035902762,0.82496,2423.6,2423.5,28.9118]
[1751035902962,0.82496,2423.6,2423.5,44.0078]
[1751035903268,0.82492,2423.7,2423.5,44.83275]
[1751035903467,0.82491,2423.7,2423.6,0.82494]
[1751035903770,0.82494,2423.6,2423.5,44.83275]
[1751035903968,0.82494,2423.6,2423.5,44.83277]
[1751035904169,0.82494,2423.6,2423.5,44.0078]
[1751035904874,0.82494,2423.6,2423.5,69.7148]
[1751035905065,0.82494,2423.6,2423.5,70.53977]
[1751035905672,0.82494,2423.6,2423.5,40.8]
[1751035905870,0.82494,2423.6,2423.5,66.506]
[1751035906064,0.82497,2423.5,2423.4,1.676]
[1751035906263,0.82497,2423.5,2423.4,27.382]
[1751035906467,0.82497,2423.5,2423.4,67.357]
[1751035906672,0.82504,2423.3,2423.2,3.2078]
[1751035906870,10.50624947,2423.7,2423.2,3.2078]
[1751035907069,12.71494947,2423.7,2423.2,4.03286]
[1751035907270,12.71494947,2423.7,2422.1,4.09059186]
[1751035907271,7.29844947,2423.1,2422.6,3.2078]
[1751035907467,0.82517,2423.0,2422.6,3.2078]
[1751035907667,0.82517,2423.0,2422.8,0.82519]
[1751035908077,2.82484,2423.0,2422.9,0.82517]
[1751035908264,1.9997,2423.0,2422.9,0.82517]
[1751035908469,1.9997,2423.0,2422.8,2.1505]
[1751035908683,0.82517,2422.9,2422.8,2.1505]
[1751035909073,2.82485,2423.0,2422.9,0.82517]
[1751035909276,2.82485,2423.0,2422.9,2.15047]
[1751035909579,1.9997,2423.0,2422.9,2.15047]
[1751035909769,2.82484,2423.0,2422.9,1.3253]
[1751035909970,0.82521,2422.8,2422.7,26.53322]
[1751035910269,0.82521,2422.8,2422.7,27.072]
[1751035910575,0.8252,2422.9,2422.7,27.89724]
[1751035911070,0.82521,2422.8,2422.7,1.364]
[1751035911266,0.82514,2423.1,2422.7,27.075]
[1751035911471,0.82514,2423.0,2422.9,0.82515]
[1751035911774,2.2604,2423.3,2422.8,0.8252]
[1751035912079,0.82519,2422.9,2422.7,27.075]
[1751035912282,0.82519,2422.9,2422.7,27.90022]
[1751035912477,0.82519,2422.9,2422.8,0.82521]
[1751035912669,1.9997,2423.1,2422.8,0.82521]
[1751035912866,0.82521,2422.8,2422.7,27.90022]
[1751035913368,0.82521,2422.8,2422.7,25.711]
[1751035913570,0.82519,2422.9,2422.8,0.82519]
[1751035913887,0.82521,2422.8,2422.7,25.711]
[1751035914074,0.82524,2422.7,2422.6,3.2078]
[1751035914470,18.32226947,2423.0,2422.5,1.63471]
[1751035914675,0.82534,2422.4,2422.3,10.0278]
[1751035914973,0.82534,2422.4,2422.3,35.7398]
[1751035915277,0.82534,2422.4,2422.3,36.56516]
[1751035915579,0.82533,2422.5,2422.3,35.7398]
[1751035915781,0.8112,2422.6,2422.4,0.82532]
[1751035915973,1.63649,2422.6,2422.4,0.82532]
[1751035916171,0.8112,2422.6,2422.4,0.82532]
[1751035916382,1.6365,2422.6,2422.5,0.82531]
[1751035916684,4.2212,2423.0,2422.3,35.7398]
[1751035916685,2.82496,2422.7,2422.6,0.82528]
[1751035916980,0.82529,2422.6,2422.5,0.8253]
[1751035917482,0.82528,2422.6,2422.5,0.82529]
[1751035917979,1.9997,2422.7,2422.5,0.82529]
[1751035918179,2.82496,2422.7,2422.6,0.82528]
[1751035918380,0.8253,2422.6,2422.5,0.8253]
[1751035918584,1.9997,2422.7,2422.6,0.82528]
[1751035918786,1.9997,2422.7,2422.6,37.04452947]
[1751035918987,2.06269,2423.2,2422.7,0.82523]
[1751035919179,2.06269,2423.2,2422.6,31.1856]
[1751035919385,2.82494,2422.7,2422.6,28.9208]
[1751035920086,0.82538,2422.3,2422.2,6.3509]
[1751035920286,5.27131,2422.3,2421.2,8.21445208]
[1751035920504,7.29844947,2421.7,2421.2,3.2078]
[1751035920688,0.8257,2421.4,2421.2,4.03354]
[1751035920889,0.82565,2421.5,2421.0,40.8]
[1751035921090,5.4571,2421.6,2421.0,1.3867]
[1751035921295,1.4282,2421.5,2421.0,27.1007]
[1751035921512,0.8257,2421.4,2421.2,4.03353]
[1751035921797,1.6591,2421.3,2421.2,4.03354]
[1751035922194,1.6591,2421.3,2421.2,9.03354]
[1751035923490,0.8251,2422.0,2421.3,7.29844947]
[1751035923689,0.82547,2422.1,2421.9,0.82551]
[1751035924196,0.8251,2422.3,2422.0,25.72]
[1751035924391,0.8251,2422.3,2422.1,0.82541]
[1751035924598,0.3406,2422.2,2422.1,2.24691]
[1751035924795,10.0318,2422.8,2422.4,0.82533]
[1751035924796,0.82528,2422.6,2422.4,0.82533]
[1751035925000,0.82524,2422.7,2422.3,25.722]
[1751035925201,1.80971864,2422.6,2422.4,0.82532]
[1751035925499,0.82531,2422.5,2422.4,1.4349]
[1751035925693,0.8253,2422.6,2422.4,1.4349]
[1751035926101,0.82533,2422.5,2422.3,25.722]
[1751035926303,0.82529,2422.6,2422.3,26.54738]
[1751035926505,0.82529,2422.6,2422.4,0.82533]
[1751035926699,3.2078,2422.8,2422.4,3.2078]
[1751035926997,0.98474941,2422.7,2422.6,0.82525]
[1751035927396,0.98489956,2422.7,2422.5,1.6374]
[1751035927588,1.65015,2423.0,2422.6,1.4349]
[1751035927790,0.98489933,2422.9,2422.7,4.03303]
[1751035928001,0.98489933,2422.8,2422.7,29.75403]
[1751035928197,1.65015,2423.0,2422.8,0.82518]
[1751035928398,0.98499655,2422.9,2422.8,2.17348]
[1751035928602,1.65015,2423.0,2422.8,2.17348]
[1751035928794,0.82517,2422.9,2422.8,1.3483]
[1751035928998,0.82521,2422.8,2422.7,28.9288]
[1751035929390,1.99,2422.9,2422.7,28.9288]
[1751035929391,2.81517,2422.9,2422.7,28.9288]
[1751035929596,0.82521,2422.8,2422.7,30.2771]
[1751035930101,0.82521,2422.8,2422.7,31.10234]
[1751035930297,2.81519,2422.9,2422.7,31.10231]
[1751035930503,1.99,2422.9,2422.7,31.10231]
[1751035930698,2.81521,2422.9,2422.7,31.10231]
[1751035931001,0.82521,2422.8,2422.7,30.2771]
[1751035931502,0.82521,2422.8,2422.7,31.10234]
[1751035931700,0.82521,2422.8,2422.7,30.2771]
[1751035931902,0.82521,2422.8,2422.7,28.9288]
[1751035932298,1.99,2422.9,2422.7,28.9288]
[1751035932503,0.82511,2423.1,2422.9,0.82515]
[1751035932701,0.8464,2423.4,2423.0,28.9268]
[1751035932892,3.2078,2423.7,2423.3,4.03284]
[1751035933094,0.825,2423.4,2423.3,3.2078]
[1751035933697,4.5871,2423.7,2422.8,3.2078]
[1751035933698,0.82508,2423.2,2422.8,3.2078]
[1751035933905,0.82508,2423.2,2423.1,3.2078]
[1751035934104,0.82506,2423.3,2423.1,4.03291]
[1751035934402,4.5871,2423.7,2423.1,4.573]
[1751035934604,0.82504,2423.3,2423.1,5.39808]
[1751035934802,0.82505,2423.3,2423.1,5.39809]
[1751035935104,0.82503,2423.4,2423.2,0.82507]
[1751035935605,0.82504,2423.3,2423.1,5.39808]
[1751035935801,3.2078,2423.7,2423.1,4.573]
[1751035936004,0.82504,2423.3,2423.2,0.82505]
[1751035936210,0.82504,2423.3,2423.1,5.39808]
[1751035936403,0.82503,2423.4,2423.2,0.82507]
[1751035936602,0.82503,2423.4,2423.3,25.715]
[1751035937301,0.8144,2423.8,2423.5,0.82495]
[1751035937502,0.82491,2423.7,2423.5,0.82494]
[1751035937706,0.82491,2423.7,2423.5,1.3216]